lending/lending_fUSD_20260206
["ID","MTS","AMOUNT","RATE_DAILY","PERIOD"]
[404624806,1770346204714,-1344.53248,0.00012947,2]
[404624807,1770346204739,-878.1745,0.00012947,2]
[404624808,1770346204765,-878.1745,0.00012947,2]
[404624809,1770346204794,-878.1745,0.00012947,2]
[404624810,1770346205150,297.70799165,0.00012947,2]
[404624811,1770346209607,200.0,0.00012947,2]
[404624812,1770346222326,-1503.0,0.00012244,2]
[404624813,1770346222355,-1503.0,0.00012244,2]
[404624814,1770346222384,-1326.54158706,0.00012244,2]
[404624815,1770346222412,-300.0,0.00012244,2]
[404624839,1770346231825,-5355.83613445,0.0001305,2]
[404624843,1770346231835,-200.0,0.00013076,2]
[404624846,1770346231844,-1080.03,0.00013093,2]
[404624849,1770346231854,-250.0,0.00013116,2]
[404624853,1770346231864,-250.0,0.00013167,2]
[404624855,1770346231874,-163.032535,0.00013182,2]
[404624858,1770346231883,-151.0,0.00013182,2]
[404624860,1770346231892,-151.0,0.00013182,2]
[404624862,1770346231901,-151.0,0.00013182,2]
[404624864,1770346231911,-760.935065,0.00013182,2]
[404624866,1770346231921,-153.76347,0.000132,2]
[404624868,1770346231934,-1037.68585728,0.000132,2]
[404624870,1770346231944,-2000.0,0.000132,2]
[404624872,1770346231954,-2000.0,0.000132,2]
[404624874,1770346231963,-1233.0,0.0001322,2]
[404624876,1770346231973,-1233.0,0.00013228,2]
[404624878,1770346231983,-298.26089446,0.00013251,2]
[404624879,1770346231992,-1233.0,0.00013286,2]
[404624881,1770346232002,-1000.0,0.00013294,2]
[404624882,1770346232012,-1080.03,0.00013367,2]
[404624883,1770346232022,-1233.0,0.00013372,2]
[404624884,1770346232031,-3240.0,0.00013425,2]
[404624885,1770346232042,-1233.0,0.00013507,2]
[404624886,1770346232051,-1233.0,0.00013508,2]
[404624887,1770346232066,-1233.0,0.00013513,2]
[404624888,1770346232077,-1680.0,0.00013529,2]
[404624889,1770346232088,-1233.0,0.00013531,2]
[404624890,1770346232099,-166.66,0.00013555,2]
[404624892,1770346232109,-10000.0,0.00013598,2]
[404624894,1770346232120,-1080.03,0.00013641,2]
[404624896,1770346232128,-1233.0,0.00013651,2]
[404624898,1770346232138,-206.0,0.00013671,2]
[404624900,1770346232150,-916.74102955,0.00013671,2]
[404624902,1770346232161,-931.89,0.00013671,2]
[404624905,1770346232180,-1457.73126087,0.00013671,2]
[404624924,1770346232340,-520.49846645,0.00013671,2]
[404624926,1770346232352,-461.17361602,0.00013671,2]
[404624928,1770346232363,-2075.93354033,0.00013671,2]
[404624933,1770346232668,-4106.03208678,0.00013671,2]
[404624934,1770346232678,-1233.0,0.00013692,2]
[404624935,1770346232687,-151.0,0.00013695,2]
[404624936,1770346232696,-500.0,0.00013697,2]
[404624937,1770346232706,-485.80171165,0.00013697,2]
[404624938,1770346232716,-500.0,0.00013698,2]
[404624939,1770346232726,-500.0,0.00013698,2]
[404624940,1770346232735,-500.0,0.00013698,2]
[404624941,1770346232745,-500.0,0.00013698,2]
[404624942,1770346232755,-500.0,0.00013698,2]
[404624943,1770346232764,-500.0,0.00013698,2]
[404624944,1770346232773,-1088.07,0.00013698,2]
[404624945,1770346232783,-696.54967563,0.00013698,2]
[404624946,1770346232794,-391.52032437,0.00013698,2]
[404624947,1770346232808,-1088.07,0.00013698,2]
[404624948,1770346232817,-1088.07,0.00013698,2]
[404624949,1770346232827,-1088.07,0.00013698,2]
[404624950,1770346232837,-1088.07,0.00013698,2]
[404624951,1770346232846,-1088.07,0.00013698,2]
[404624952,1770346232855,-1088.07,0.00013698,2]
[404624953,1770346232865,-1088.07,0.00013698,2]
[404624954,1770346232875,-1088.07,0.00013698,2]
[404624955,1770346232885,-316.41967563,0.00013698,2]
[404624956,1770346232896,-401.13398429,0.00013698,2]
[404624957,1770346232907,-370.51634008,0.00013698,2]
[404624958,1770346232918,-625.37074936,0.00013698,2]
[404624959,1770346232932,-462.69925064,0.00013698,2]
[404624960,1770346232942,-1088.07,0.00013698,2]
[404624961,1770346232952,-1088.07,0.00013698,2]
[404624962,1770346232962,-1088.07,0.00013698,2]
[404624963,1770346232972,-1088.07,0.00013698,2]
[404624964,1770346232981,-1050.67041113,0.00013698,2]
[404624965,1770346232993,-37.39958887,0.00013698,2]
[404624966,1770346233003,-337.34560423,0.00013698,2]
[404624967,1770346233050,-750.72439577,0.00013698,2]
[404624968,1770346233063,-1088.07,0.00013698,2]
[404624969,1770346233075,-1088.07,0.00013698,2]
[404624970,1770346233088,-1088.07,0.00013698,2]
[404624971,1770346233098,-1088.07,0.00013698,2]
[404624972,1770346233107,-1088.07,0.00013698,2]
[404624973,1770346233118,-1088.29825811,0.00013698,2]
[404624974,1770346233127,-500.0,0.00013698,2]
[404624975,1770346233137,-500.0,0.00013698,2]
[404624976,1770346233147,-185.55306885,0.00013698,2]
[404624977,1770346233159,-649.28,0.00013698,2]
[404624978,1770346233169,-649.28,0.00013698,2]
[404624979,1770346233178,-649.28,0.00013698,2]
[404624980,1770346233188,-649.28,0.00013698,2]
[404624981,1770346233383,-649.28,0.00013698,2]
[404624982,1770346233398,-649.28,0.00013698,2]
[404624983,1770346233408,-649.28,0.00013698,2]
[404624984,1770346233418,-649.28,0.00013698,2]
[404624985,1770346233428,-649.28,0.00013698,2]
[404624986,1770346233437,-649.28,0.00013698,2]
[404624987,1770346233448,-649.28,0.00013698,2]
[404624988,1770346233458,-649.28,0.00013698,2]
[404624989,1770346233467,-649.28,0.00013698,2]
[404624990,1770346233476,-649.28,0.00013698,2]
[404624991,1770346233486,-649.28,0.00013698,2]
[404624992,1770346233496,-649.28,0.00013698,2]
[404624993,1770346233505,-189.16950078,0.00013698,2]
[404624994,1770346233517,-255.51004428,0.00013698,2]
[404624995,1770346233529,-204.60045494,0.00013698,2]
[404624996,1770346233538,-649.28,0.00013698,2]
[404624997,1770346233548,-649.28,0.00013698,2]
[404624998,1770346233560,-813.42,0.00013698,2]
[404624999,1770346233570,-649.28,0.00013698,2]
[404625000,1770346233580,-334.90121275,0.00013698,2]
[404625007,1770346237896,-478.51878725,0.00013698,2]
[404625008,1770346237906,-649.28,0.00013698,2]
[404625009,1770346237915,-375.4030268,0.00013698,2]
[404625010,1770346237927,-438.0169732,0.00013698,2]
[404625011,1770346237936,-649.28,0.00013698,2]
[404625012,1770346237946,-813.42,0.00013698,2]
[404625013,1770346237955,-649.28,0.00013698,2]
[404625014,1770346237964,-813.42,0.00013698,2]
[404625015,1770346237974,-649.39059091,0.00013698,2]
[404625016,1770346237983,-813.42,0.00013698,2]
[404625017,1770346237992,-536.14961791,0.00013698,2]
[404625018,1770346238004,-277.27038209,0.00013698,2]
[404625019,1770346238013,-293.72961797,0.00013698,2]
[404625020,1770346238031,-519.69038203,0.00013698,2]
[404625021,1770346238040,-813.42,0.00013698,2]
[404625022,1770346238050,-813.42,0.00013698,2]
[404625023,1770346238063,-813.42,0.00013698,2]
[404625024,1770346238072,-813.42,0.00013698,2]
[404625025,1770346238084,-813.42,0.00013698,2]
[404625026,1770346238094,-813.42,0.00013698,2]
[404625027,1770346238103,-813.42,0.00013698,2]
[404625028,1770346238113,-813.42,0.00013698,2]
[404625029,1770346238123,-813.42,0.00013698,2]
[404625030,1770346238133,-813.42,0.00013698,2]
[404625031,1770346238142,-813.42,0.00013698,2]
[404625032,1770346238153,-813.42,0.00013698,2]
[404625033,1770346238163,-813.42,0.00013698,2]
[404625034,1770346238172,-813.42,0.00013698,2]
[404625035,1770346238181,-813.42,0.00013698,2]
[404625036,1770346238190,-813.58037815,0.00013698,2]
[404625037,1770346238199,-638.78,0.00013698,2]
[404625038,1770346238209,-638.78,0.00013698,2]
[404625039,1770346238218,-638.78,0.00013698,2]
[404625040,1770346238227,-638.78,0.00013698,2]
[404625041,1770346238237,-638.78,0.00013698,2]
[404625042,1770346238247,-638.78,0.00013698,2]
[404625043,1770346238256,-638.78,0.00013698,2]
[404625044,1770346238266,-638.78,0.00013698,2]
[404625045,1770346238276,-638.78,0.00013698,2]
[404625046,1770346238285,-638.78,0.00013698,2]
[404625047,1770346238294,-638.78,0.00013698,2]
[404625048,1770346238306,-638.78,0.00013698,2]
[404625049,1770346238316,-638.78,0.00013698,2]
[404625050,1770346238327,-638.78,0.00013698,2]
[404625051,1770346238337,-638.78,0.00013698,2]
[404625052,1770346238347,-638.78,0.00013698,2]
[404625053,1770346238357,-638.78,0.00013698,2]
[404625054,1770346238367,-638.78,0.00013698,2]
[404625055,1770346238376,-638.78,0.00013698,2]
[404625056,1770346238386,-638.78,0.00013698,2]
[404625057,1770346238395,-638.78,0.00013698,2]
[404625058,1770346238406,-638.78,0.00013698,2]
[404625059,1770346238415,-638.78,0.00013698,2]
[404625060,1770346238425,-638.9456588,0.00013698,2]
[404625061,1770346238435,-500.0,0.00013698,2]
[404625062,1770346238444,-500.0,0.00013698,2]
[404625063,1770346238454,-500.0,0.00013698,2]
[404625064,1770346238464,-230.43331253,0.00013698,2]
[404625065,1770346238474,-500.0,0.00013698,2]
[404625066,1770346238483,-500.0,0.00013698,2]
[404625067,1770346238492,-500.0,0.00013698,2]
[404625068,1770346238502,-157.13944848,0.00013698,2]
[404625069,1770346238511,-500.0,0.00013698,2]
[404625070,1770346238521,-500.0,0.00013698,2]
[404625071,1770346238531,-500.0,0.00013698,2]
[404625072,1770346238542,-500.0,0.00013698,2]
[404625073,1770346238551,-500.0,0.00013698,2]
[404625074,1770346238565,-504.71490272,0.00013698,2]
[404625075,1770346238574,-500.0,0.00013698,2]
[404625076,1770346238584,-500.0,0.00013698,2]
[404625077,1770346238594,-500.0,0.00013698,2]
[404625078,1770346238604,-500.0,0.00013698,2]
[404625079,1770346238613,-500.0,0.00013698,2]
[404625080,1770346238623,-500.0,0.00013698,2]
[404625081,1770346238633,-500.0,0.00013698,2]
[404625082,1770346238643,-416.36459269,0.00013698,2]
[404625083,1770346238652,-500.69620513,0.00013698,2]
[404625084,1770346238662,-500.0,0.00013698,2]
[404625085,1770346238672,-500.0,0.00013698,2]
[404625086,1770346238681,-500.0,0.00013698,2]
[404625087,1770346238690,-500.0,0.00013698,2]
[404625088,1770346238700,-500.0,0.00013698,2]
[404625089,1770346238710,-515.4561281,0.00013698,2]
[404625090,1770346238719,-500.0,0.00013698,2]
[404625091,1770346238728,-500.0,0.00013698,2]
[404625092,1770346238738,-500.0,0.00013698,2]
[404625093,1770346238748,-500.0,0.00013698,2]
[404625094,1770346238758,-500.0,0.00013698,2]
[404625095,1770346238767,-500.0,0.00013698,2]
[404625096,1770346238776,-500.0,0.00013698,2]
[404625097,1770346238785,-500.0,0.00013698,2]
[404625098,1770346238796,-500.0,0.00013698,2]
[404625099,1770346238806,-500.0,0.00013698,2]
[404625100,1770346238816,-500.0,0.00013698,2]
[404625101,1770346238825,-500.0,0.00013698,2]
[404625102,1770346238835,-500.0,0.00013698,2]
[404625103,1770346238845,-500.0,0.00013698,2]
[404625104,1770346238855,-500.0,0.00013698,2]
[404625105,1770346238864,-500.0,0.00013698,2]
[404625106,1770346238874,-500.0,0.00013698,2]
[404625107,1770346238884,-500.0,0.00013698,2]
[404625108,1770346238894,-500.0,0.00013698,2]
[404625109,1770346238903,-500.0,0.00013698,2]
[404625110,1770346238913,-500.0,0.00013698,2]
[404625111,1770346238922,-500.0,0.00013698,2]
[404625112,1770346238932,-500.0,0.00013698,2]
[404625113,1770346238941,-500.0,0.00013698,2]
[404625114,1770346238952,-1000.0,0.00013698,2]
[404625115,1770346238962,-500.0,0.00013698,2]
[404625116,1770346238971,-1000.0,0.00013698,2]
[404625117,1770346238981,-500.0,0.00013698,2]
[404625118,1770346238991,-1000.0,0.00013698,2]
[404625119,1770346239000,-500.0,0.00013698,2]
[404625120,1770346239009,-1000.0,0.00013698,2]
[404625121,1770346239018,-500.0,0.00013698,2]
[404625122,1770346239028,-1000.0,0.00013698,2]
[404625123,1770346239038,-500.0,0.00013698,2]
[404625124,1770346239047,-1000.0,0.00013698,2]
[404625125,1770346239059,-162.30204578,0.00013698,2]
[404625126,1770346239068,-1000.0,0.00013698,2]
[404625127,1770346239081,-1000.0,0.00013698,2]
[404625128,1770346239091,-1000.0,0.00013698,2]
[404625129,1770346239101,-1000.0,0.00013698,2]
[404625130,1770346239111,-1000.0,0.00013698,2]
[404625131,1770346239120,-1000.0,0.00013698,2]
[404625132,1770346239130,-1000.0,0.00013698,2]
[404625133,1770346239140,-1000.0,0.00013698,2]
[404625134,1770346239150,-1000.0,0.00013698,2]
[404625135,1770346239161,-1000.0,0.00013698,2]
[404625136,1770346239171,-1000.0,0.00013698,2]
[404625137,1770346239181,-1000.0,0.00013698,2]
[404625138,1770346239190,-1000.0,0.00013698,2]
[404625139,1770346239200,-1000.0,0.00013698,2]
[404625140,1770346239210,-1000.0,0.00013698,2]
[404625141,1770346239221,-1000.0,0.00013698,2]
[404625142,1770346239230,-1000.0,0.00013698,2]
[404625143,1770346239240,-1000.0,0.00013698,2]
[404625144,1770346239250,-1000.0,0.00013698,2]
[404625145,1770346239259,-1000.0,0.00013698,2]
[404625146,1770346239269,-1000.0,0.00013698,2]
[404625147,1770346239278,-1000.0,0.00013698,2]
[404625148,1770346239287,-1000.0,0.00013698,2]
[404625149,1770346239297,-1000.0,0.00013698,2]
[404625150,1770346239308,-1000.0,0.00013698,2]
[404625151,1770346239317,-1000.0,0.00013698,2]
[404625152,1770346239326,-1000.0,0.00013698,2]
[404625153,1770346239335,-1000.0,0.00013698,2]
[404625154,1770346239345,-1000.0,0.00013698,2]
[404625155,1770346239355,-1000.0,0.00013698,2]
[404625156,1770346239364,-1000.0,0.00013698,2]
[404625157,1770346239374,-1000.0,0.00013698,2]
[404625158,1770346239383,-1000.0,0.00013698,2]
[404625159,1770346239392,-225.54,0.00013698,2]
[404625160,1770346239401,-500.0,0.00013698,2]
[404625161,1770346239411,-342.36590553,0.00013698,2]
[404625162,1770346239420,-500.0,0.00013698,2]
[404625163,1770346239430,-500.0,0.00013698,2]
[404625164,1770346239440,-447.86335702,0.00013698,2]
[404625165,1770346239449,-500.0,0.00013698,2]
[404625166,1770346239459,-503.55370395,0.00013698,2]
[404625167,1770346239470,-500.0,0.00013698,2]
[404625168,1770346239479,-526.84569173,0.00013698,2]
[404625169,1770346239488,-753.77,0.00013698,2]
[404625170,1770346239498,-753.77,0.00013698,2]
[404625171,1770346239507,-753.77,0.00013698,2]
[404625172,1770346239517,-753.77,0.00013698,2]
[404625173,1770346239526,-753.77,0.00013698,2]
[404625174,1770346239535,-753.77,0.00013698,2]
[404625175,1770346239544,-753.77,0.00013698,2]
[404625176,1770346239556,-753.77,0.00013698,2]
[404625177,1770346239565,-500.0,0.00013698,2]
[404625178,1770346239575,-753.77,0.00013698,2]
[404625179,1770346239585,-500.0,0.00013698,2]
[404625180,1770346239594,-753.77,0.00013698,2]
[404625181,1770346239604,-500.0,0.00013698,2]
[404625182,1770346239614,-753.77,0.00013698,2]
[404625183,1770346239623,-500.0,0.00013698,2]
[404625184,1770346239633,-753.77,0.00013698,2]
[404625185,1770346239642,-500.0,0.00013698,2]
[404625187,1770346239651,-500.0,0.00013698,2]
[404625188,1770346239661,-417.50538567,0.00013698,2]
[404625189,1770346239670,-500.0,0.00013698,2]
[404625190,1770346239679,-500.0,0.00013698,2]
[404625191,1770346239688,-500.0,0.00013698,2]
[404625192,1770346239698,-500.0,0.00013698,2]
[404625193,1770346239707,-516.54934505,0.00013698,2]
[404625194,1770346239716,-508.924596,0.00013698,2]
[404625195,1770346239726,-502.4435112,0.00013698,2]
[404625196,1770346239736,-500.0,0.00013698,2]
[404625197,1770346239745,-500.0,0.00013698,2]
[404625198,1770346239755,-500.0,0.00013698,2]
[404625199,1770346239764,-391.81586612,0.00013698,2]
[404625200,1770346239774,-151.0,0.00013698,2]
[404625201,1770346239784,-151.0,0.00013698,2]
[404625202,1770346239793,-151.0,0.00013698,2]
[404625203,1770346239803,-500.0,0.00013698,2]
[404625204,1770346239814,-500.0,0.00013698,2]
[404625205,1770346239823,-500.0,0.00013698,2]
[404625206,1770346239832,-500.0,0.00013698,2]
[404625207,1770346239842,-500.0,0.00013698,2]
[404625208,1770346239852,-500.0,0.00013698,2]
[404625209,1770346239861,-500.0,0.00013698,2]
[404625211,1770346239870,-500.0,0.00013698,2]
[404625212,1770346239880,-500.0,0.00013698,2]
[404625213,1770346239889,-500.0,0.00013698,2]
[404625214,1770346239899,-500.0,0.00013698,2]
[404625215,1770346239909,-500.0,0.00013698,2]
[404625216,1770346239918,-500.0,0.00013698,2]
[404625217,1770346239927,-500.0,0.00013698,2]
[404625218,1770346239936,-500.0,0.00013698,2]
[404625219,1770346239946,-500.0,0.00013698,2]
[404625220,1770346239955,-200.0,0.00013699,2]
[404625221,1770346239965,-2132.87,0.00013699,2]
[404625222,1770346239974,-705.72,0.00013699,2]
[404625223,1770346239984,-267.32,0.00013699,2]
[404625224,1770346239993,-222.76,0.00013699,2]
[404625225,1770346240002,-151.0,0.00013699,2]
[404625226,1770346240012,-162.914193,0.00013699,2]
[404625227,1770346240021,-185.64,0.00013699,2]
[404625228,1770346240031,-154.7,0.00013699,2]
[404625229,1770346240039,-773.51,0.00013699,2]
[404625230,1770346240049,-7018.94,0.00013699,2]
[404625231,1770346240061,-574.07,0.00013699,2]
[404625232,1770346240070,-150.99,0.00013699,2]
[404625233,1770346240081,-299.99,0.00013699,2]
[404625234,1770346240092,-9999.99,0.00013699,2]
[404625235,1770346240102,-171.05,0.00013702,2]
[404625236,1770346240112,-1233.0,0.00013705,2]
[404625237,1770346240123,-1233.0,0.00013709,2]
[404625238,1770346240132,-391.97385769,0.00013747,2]
[404625239,1770346240166,-828.73,0.00013747,2]
[404625240,1770346240178,-12.29614231,0.00013747,2]
[404625241,1770346240187,-341.0,0.00013796,2]
[404625242,1770346240196,-223.26125583,0.00013799,2]
[404625243,1770346240207,-86.03529173,0.00013799,2]
[404625244,1770346240218,-1233.0,0.00013896,2]
[404625245,1770346240239,-666.0,0.00013899,2]
[404625246,1770346240248,-151.0,0.00013901,2]
[404625247,1770346240258,-205.05385539,0.00013904,2]
[404625248,1770346240267,-1080.09175409,0.00013915,2]
[404625249,1770346240277,-1120.77864379,0.0001393,2]
[404625250,1770346240755,-112.22135621,0.0001393,2]
[404625251,1770346240764,-500.0,0.00013938,2]
[404625252,1770346240774,-504.18810367,0.00013938,2]
[404625253,1770346240783,-200.0,0.00013939,2]
[404625254,1770346240793,-200.0,0.00013939,2]
[404625255,1770346240802,-200.0,0.00013939,2]
[404625256,1770346240813,-151.0,0.00013939,2]
[404625257,1770346240823,-151.0,0.00013939,2]
[404625258,1770346240832,-151.0,0.00013939,2]
[404625259,1770346240841,-151.0,0.00013939,2]
[404625260,1770346240850,-151.0,0.00013939,2]
[404625261,1770346240860,-1233.0,0.00013952,2]
[404625262,1770346240869,-250.0,0.00013965,2]
[404625263,1770346240879,-1233.0,0.00013982,2]
[404625264,1770346240888,-416.0,0.00014,2]
[404625265,1770346240897,-1500.0,0.00014,2]
[404625266,1770346240907,-166.66,0.00014002,2]
[404625267,1770346240917,-200.0,0.00014078,2]
[404625268,1770346240926,-200.0,0.00014078,2]
[404625269,1770346240935,-200.0,0.00014078,2]
[404625270,1770346240944,-670.47059344,0.00014099,2]
[404625271,1770346240953,-152.0,0.00014137,4]
[404625272,1770346240963,-1233.0,0.00014161,2]
[404625273,1770346240972,-1233.0,0.00014166,2]
[404625274,1770346240982,-200.0,0.00014219,2]
[404625275,1770346240991,-200.0,0.00014219,2]
[404625276,1770346241000,-200.0,0.00014219,2]
[404625277,1770346241009,-1233.0,0.00014264,2]
[404625278,1770346241018,-1233.0,0.00014282,2]
[404625279,1770346241027,-1233.0,0.00014296,2]
[404625280,1770346241036,-155.16,0.00014307,2]
[404625281,1770346241045,-289.26507738,0.00014347,2]
[404625282,1770346241055,-600.0,0.00014355,2]
[404625283,1770346241065,-600.0,0.00014355,2]
[404625284,1770346241079,-600.0,0.00014355,2]
[404625285,1770346241091,-600.0,0.00014355,2]
[404625286,1770346241101,-600.0,0.00014355,2]
[404625287,1770346241111,-300.0,0.00014355,2]
[404625288,1770346241121,-250.0,0.00014355,2]
[404625289,1770346241131,-201.65623646,0.00014355,2]
[404625290,1770346241141,-200.0,0.00014361,2]
[404625291,1770346241152,-200.0,0.00014361,2]
[404625292,1770346241162,-200.0,0.00014361,2]
[404625293,1770346241171,-1600.0,0.00014368,2]
[404625294,1770346241180,-1233.0,0.00014382,2]
[404625295,1770346241190,-2132.87,0.00014384,2]
[404625296,1770346241200,-1233.0,0.00014387,2]
[404625297,1770346241210,-269.81244442,0.0001439,2]
[404625298,1770346241220,-1500.0,0.000144,2]
[404625299,1770346241230,-166.66,0.0001445,2]
[404625300,1770346241239,-1610.97249242,0.000145,2]
[404625301,1770346241267,-338.02750758,0.000145,2]
[404625302,1770346241276,-200.0,0.00014505,2]
[404625303,1770346241286,-200.0,0.00014505,2]
[404625304,1770346241295,-666.0,0.00014551,2]
[404625305,1770346241306,-675.22486702,0.00014551,2]
[404625306,1770346241316,-54158.1946827,0.00014642,2]
[404625307,1770346241325,-501.0,0.00014685,2]
[404625308,1770346241335,-1000.0,0.00014771,2]
[404625309,1770346241344,-3208.49305545,0.00014798,2]
[404625310,1770346241354,-164.26,0.000148,2]
[404625311,1770346241363,-168.0,0.000148,2]
[404625312,1770346241372,-1388.47178405,0.00014882,2]
[404625384,1770346243532,-549.44579354,0.00014882,2]
[404625388,1770346244334,-23.30050508,0.00014882,2]
[404625392,1770346246431,-389.78191733,0.00014882,2]
[404625393,1770346246440,-166.66,0.00014897,2]
[404625394,1770346246450,-217.01480573,0.000149,2]
[404625395,1770346246459,-2459.1533497,0.00014949,10]
[404625396,1770346246468,-151.0,0.00014987,2]
[404625397,1770346246477,-500.0,0.00014989,2]
[404625398,1770346246486,-666.0,0.00014989,2]
[404625399,1770346246496,-120061.07413307,0.0001499,2]
[404625400,1770346246505,-1299.48799014,0.0001499,2]
[404625401,1770346246514,-151.0,0.0001499,2]
[404625402,1770346246523,-151.0,0.0001499,2]
[404625403,1770346246532,-151.0,0.0001499,2]
[404625404,1770346246541,-150.0,0.00014999,2]
[404625405,1770346246550,-250.0,0.00015,2]
[404625406,1770346246559,-346.88,0.00015038,2]
[404625407,1770346246572,-675.37,0.00015068,2]
[404625408,1770346246581,-2132.87,0.00015068,2]
[404625409,1770346246591,-151.0,0.00015068,2]
[404625410,1770346246601,-176.678893,0.00015068,2]
[404625411,1770346246609,-753.77,0.00015099,2]
[404625412,1770346246619,-168.0,0.000151,2]
[404625413,1770346246628,-166.66,0.00015345,2]
[404625414,1770346246638,-500.98882065,0.00015381,2]
[404625415,1770346246647,-963.17981385,0.00015477,2]
[404625416,1770346246976,-376.51518615,0.00015477,2]
[404625417,1770346246985,-162.357,0.00015477,2]
[404625418,1770346246995,-1411.0,0.00015477,2]
[404625419,1770346247004,-626.524,0.00015477,2]
[404625420,1770346247013,-3508.572,0.00015477,2]
[404625421,1770346247022,-150.282,0.00015477,2]
[404625422,1770346247032,-158.39458343,0.000155,2]
[404625423,1770346247083,-841.60541657,0.000155,2]
[404625424,1770346247095,-442.39458343,0.00015545,2]
[404625425,1770346294592,987.72005801,0.00011089,2]
[404625426,1770346313116,200.0,0.000126,4]
[404625427,1770346315201,400.0,0.000127,4]
[404625428,1770346316633,409.730593,0.00012885,2]
[404625429,1770346317296,600.0,0.000128,4]
[404625430,1770346454175,166.66,0.00012775,2]
[404625432,1770346623250,1852.42,0.0001224,2]
[404625433,1770346675192,575.57,0.00012193,2]
[404625434,1770346746060,1600.0,0.00012193,2]
[404625435,1770346750685,154.0,0.00012193,2]
[404625436,1770346806830,1000.0,0.00012167,2]
[404625437,1770346824251,1000.0,0.0002,30]
[404625438,1770346842634,150.0,0.00012818,2]
[404625439,1770346842683,150.0,0.00012873,2]
[404625440,1770346842719,150.0,0.00012818,2]
[404625441,1770346842859,150.0,0.00012873,2]
[404625442,1770346843059,150.5833019,0.00012818,2]
[404625447,1770346966918,196.21537999,0.00012813,2]
[404625448,1770346987500,3704.56131811,0.00012813,2]
[404625449,1770346987522,2066.39582888,0.00012813,2]
[404625450,1770346995149,242.84228361,0.00012813,2]
[404625451,1770347010946,180.87617865,0.00012813,2]
[404625452,1770347018724,2396.48724696,0.00012813,2]
[404625453,1770347097033,196.21537999,0.00012813,2]
[404625454,1770347107652,3847.30476466,0.00012813,2]
[404625455,1770347117791,161.0,0.0001938,120]
[404625456,1770347122008,150.0,0.00012873,2]
[404625457,1770347122732,150.0,0.00012873,2]
[404625458,1770347125249,769.88831725,0.00012813,2]
[404625459,1770347125272,552.65428745,0.00012813,2]
[404625460,1770347131324,180.87617865,0.00012813,2]
[404625461,1770347148990,1597.65816464,0.00012813,2]
[404625462,1770347178910,7668.82136926,0.00012102,2]
[404625463,1770347178932,1578.68863074,0.00012102,2]
[404625464,1770347217324,196.21537999,0.00012813,2]
[404625465,1770347228701,2914.0291624,0.00012813,2]
[404625466,1770347228850,5311.07682687,0.00012799,2]
[404625467,1770347228880,10000.01,0.00012799,2]
[404625468,1770347228907,10000.01,0.00012799,2]
[404625469,1770347228935,10000.01,0.00012799,2]
[404625470,1770347228962,10000.01,0.00012799,2]
[404625471,1770347228988,10000.01,0.00012799,2]
[404625472,1770347229015,10000.01,0.00012799,2]
[404625473,1770347229041,10000.01,0.00012799,2]
[404625474,1770347373808,500.0,0.0001193,2]